bitfinex/quotes_SOLUSD_20250822
["timestamp","ask_amount","ask_price","bid_price","bid_amount"]
[1755879474899,3.82199629,196.31,196.25,0.66]
[1755879475218,3.82199629,196.3,196.21,0.66]
[1755879475419,3.82199629,196.28,196.2,0.66]
[1755879475876,3.82199629,196.31,196.27,13.14470753]
[1755879476076,56.30199629,196.33,196.3,13.14470753]
[1755879476294,3.82199629,196.31,196.24,26.66]
[1755879476498,3.82199629,196.31,196.2,26.0]
[1755879476808,3.82199629,196.31,196.21,0.66]
[1755879477005,53.16,196.33,196.21,0.66]
[1755879477006,3.82199629,196.3,196.21,0.66]
[1755879477375,0.68,196.29,196.16,18.61665725]
[1755879477576,0.68,196.29,196.13,10.34315284]
[1755879477577,3.82199629,196.29,196.28,13.14470753]
[1755879477801,3.82199629,196.3,196.28,13.14470753]
[1755879478001,56.30199629,196.33,196.29,13.14470753]
[1755879478203,52.46,196.33,196.32,13.14470753]
[1755879479105,56.28199629,196.33,196.32,13.14470753]
[1755879479296,52.46,196.33,196.32,13.14470753]
[1755879479606,3.82199629,196.35,196.32,13.80470753]
[1755879479902,56.28199629,196.37,196.34,13.14470753]
[1755879480106,3.82199629,196.35,196.25,0.66]
[1755879480305,3.82199629,196.32,196.31,13.14470753]
[1755879480508,3.82199629,196.32,196.23,26.0]
[1755879480813,3.82199629,196.32,196.31,13.14470753]
[1755879481189,52.44,196.33,196.27,0.66]
[1755879481504,3.82199629,196.32,196.27,0.66]
[1755879481725,4.50199629,196.31,196.23,26.66]
[1755879482019,16.96670382,196.29,196.24,13.14470753]
[1755879482194,3.82199629,196.24,196.17,0.69]
[1755879482395,3.82199629,196.21,196.17,0.03]
[1755879482596,3.82199629,196.22,196.2,13.14470753]
[1755879482790,52.42,196.23,196.21,13.14470753]
[1755879483119,3.82199629,196.21,196.2,13.14470753]
[1755879483330,3.82199629,196.2,196.17,0.03]
[1755879483621,13.59559401,196.21,196.17,0.03]
[1755879483781,4.50199629,196.22,196.17,0.03]
[1755879483782,3.82199629,196.18,196.17,0.03]
[1755879483983,53.1,196.23,196.17,0.03]
[1755879483984,3.82199629,196.21,196.17,13.17470753]
[1755879484197,4.50199629,196.21,196.17,0.03]
[1755879484382,52.42,196.23,196.17,0.03]
[1755879484383,3.82199629,196.18,196.17,0.03]
[1755879484588,56.24199629,196.18,196.17,0.03]
[1755879484794,83.94662097,196.18,196.17,0.03]
[1755879485098,3.82199629,196.11,196.09,0.03]
[1755879485298,52.42,196.11,196.09,0.03]
[1755879485499,52.42,196.11,196.1,13.14470753]
[1755879485700,56.24199629,196.11,196.09,0.03]
[1755879485917,3.82199629,196.1,196.09,0.03]
[1755879486100,56.24199629,196.11,196.09,13.17470753]
[1755879486280,52.42,196.11,196.1,13.14470753]
[1755879486481,52.4,196.15,196.1,13.80470753]
[1755879486694,3.82199629,196.16,196.14,13.14470753]
[1755879486989,3.82199629,196.15,196.09,26.03]
[1755879487208,3.82199629,196.14,196.1,0.66]
[1755879487412,3.82199629,196.16,196.09,0.03]
[1755879487624,3.82199629,196.16,196.11,0.66]
[1755879488123,3.82199629,196.16,196.1,26.0]
[1755879488124,3.82199629,196.16,196.15,13.14470753]
[1755879488280,52.4,196.17,196.15,0.66]
[1755879488481,3.82199629,196.21,196.16,13.14470753]
[1755879488693,3.82199629,196.19,196.14,26.0]
[1755879488897,3.82199629,196.16,196.14,13.14470753]
[1755879489103,3.82199629,196.16,196.1,0.66]
[1755879489438,52.4,196.18,196.12,26.0]
[1755879489639,56.22199629,196.18,196.12,26.66]
[1755879489924,3.82199629,196.23,196.16,26.0]
[1755879490092,3.82199629,196.23,196.22,13.14470753]
[1755879490294,52.4,196.27,196.22,13.80470753]
[1755879490506,52.4,196.27,196.26,13.14470753]
[1755879490714,44.24199629,196.35,196.22,26.0]
[1755879490893,3.82199629,196.33,196.29,26.0]
[1755879491093,3.82199629,196.36,196.3,0.66]
[1755879491328,3.82199629,196.35,196.3,0.66]
[1755879491649,3.82199629,196.33,196.29,26.0]
[1755879491949,13.14470753,196.37,196.29,0.66]
[1755879491950,3.82199629,196.32,196.29,0.66]
[1755879492394,0.68,196.37,196.27,26.0]
[1755879492395,3.82199629,196.35,196.31,13.14470753]
[1755879492594,3.82199629,196.35,196.27,26.0]
[1755879492595,3.82199629,196.35,196.34,13.14470753]
[1755879492818,0.06,196.38,196.34,13.80470753]
[1755879493117,0.06,196.38,196.37,13.14470753]
[1755879493420,0.06,196.38,196.37,39.14470753]
[1755879493716,0.06,196.38,196.37,13.80470753]
[1755879494031,0.2,196.56,196.45,26.0]
[1755879494032,4.50199629,196.55,196.45,26.0]
[1755879494326,3.82199629,196.51,196.45,26.66]
[1755879494691,3.82199629,196.51,196.42,26.66]
[1755879495117,3.82199629,196.48,196.42,26.0]
[1755879495339,3.82199629,196.44,196.35,0.66]
[1755879495632,3.82199629,196.45,196.43,13.14470753]
[1755879495820,3.82199629,196.44,196.4,26.0]
[1755879496135,3.82199629,196.44,196.35,0.66]
[1755879496333,3.82199629,196.43,196.42,13.14470753]
[1755879496536,3.82199629,196.42,196.35,0.66]
[1755879496741,3.82199629,196.39,196.38,13.14470753]
[1755879497236,13.14470753,196.44,196.31,0.66]
[1755879497237,3.82199629,196.38,196.37,13.14470753]
[1755879497534,3.82199629,196.41,196.37,13.14470753]
[1755879497742,0.98432314,196.44,196.4,13.14470753]
[1755879497743,3.82199629,196.44,196.4,13.14470753]
[1755879497904,3.82199629,196.44,196.43,13.14470753]
[1755879498408,3.82199629,196.41,196.34,26.71]
[1755879498740,0.7,196.44,196.33,0.71]
[1755879498741,3.82199629,196.4,196.33,0.71]
[1755879498905,3.82199629,196.44,196.39,13.14470753]
[1755879499100,3.82199629,196.44,196.43,13.14470753]
[1755879499334,3.82199629,196.4,196.35,0.71]
[1755879499542,3.82199629,196.41,196.31,26.71]
[1755879499877,4.52199629,196.42,196.28,0.28432314]
[1755879500014,3.82199629,196.38,196.32,0.71]
[1755879500203,4.52199629,196.42,196.32,0.71]
[1755879500403,3.82199629,196.42,196.41,13.14470753]
[1755879500639,13.59559401,196.46,196.41,13.14470753]
[1755879500640,3.82199629,196.44,196.41,13.14470753]
[1755879500818,3.82199629,196.44,196.35,26.0]
[1755879500819,3.82199629,196.4,196.35,0.71]
[1755879501014,3.82199629,196.4,196.39,13.14470753]
[1755879501220,3.82199629,196.43,196.39,39.14470753]
[1755879501419,0.7,196.45,196.42,13.14470753]
[1755879501420,3.82199629,196.45,196.42,13.14470753]
[1755879501617,3.82199629,196.46,196.44,13.14470753]
[1755879501814,3.82199629,196.46,196.45,13.14470753]
[1755879502337,3.82199629,196.44,196.42,13.14470753]
[1755879502626,3.82199629,196.44,196.43,13.14470753]
[1755879502829,3.82199629,196.46,196.43,13.14470753]
[1755879503005,3.82199629,196.44,196.4,26.0]
[1755879503205,3.82199629,196.44,196.43,13.14470753]
[1755879503615,3.82199629,196.44,196.33,0.28432314]
[1755879503616,3.82199629,196.41,196.33,0.71]
[1755879503814,13.59559401,196.48,196.4,13.14470753]
[1755879503815,3.82199629,196.46,196.4,13.14470753]
[1755879504021,56.08199629,196.5,196.45,13.14470753]
[1755879504223,3.82199629,196.5,196.49,13.14470753]
[1755879504450,3.82199629,196.5,196.45,26.0]
[1755879504628,3.82199629,196.5,196.49,13.14470753]
[1755879504834,0.7,196.52,196.49,13.14470753]
[1755879504835,3.82199629,196.52,196.49,13.14470753]
[1755879505032,3.82199629,196.53,196.51,13.14470753]
[1755879505347,3.82199629,196.51,196.48,26.0]
[1755879505529,3.82199629,196.51,196.41,0.71]
[1755879505728,3.82199629,196.48,196.41,26.71]
[1755879505933,3.82199629,196.5,196.42,0.71]
[1755879506247,3.82199629,196.55,196.46,0.28432314]
[1755879506549,3.82199629,196.55,196.54,13.14470753]
[1755879506718,4.52199629,196.55,196.54,13.14470753]
[1755879506918,0.2,196.56,196.54,13.14470753]
[1755879507167,0.2,196.56,196.55,13.14470753]
[1755879507315,0.2,196.56,196.52,26.0]
[1755879507521,0.2,196.56,196.55,13.14470753]
[1755879509529,0.2,196.56,196.51,0.71]
[1755879509723,0.2,196.56,196.55,13.14470753]
[1755879510235,3.82199629,196.54,196.52,13.14470753]
[1755879510416,0.7,196.53,196.51,13.14470753]
[1755879510622,3.82199629,196.52,196.44,0.71]
[1755879510824,3.82199629,196.51,196.49,13.14470753]
[1755879511024,3.82199629,196.48,196.41,0.71]
[1755879511447,3.82199629,196.48,196.47,13.14470753]
[1755879511649,3.82199629,196.47,196.46,13.14470753]
[1755879511835,3.82199629,196.48,196.43,0.71]
[1755879512042,3.82199629,196.47,196.43,0.71]
[1755879512249,3.82199629,196.47,196.4,0.71]
[1755879512458,3.82199629,196.46,196.45,13.14470753]
[1755879512658,3.82199629,196.46,196.4,0.71]
[1755879512834,3.82199629,196.44,196.37,0.71]
[1755879513037,3.82199629,196.44,196.43,13.14470753]
[1755879513237,3.82199629,196.45,196.43,13.14470753]
[1755879513456,3.82199629,196.43,196.31,0.03]
[1755879513664,3.82199629,196.4,196.32,0.71]
[1755879513835,3.82199629,196.43,196.32,0.71]
[1755879514040,3.82199629,196.43,196.33,13.59559401]
[1755879514243,3.82199629,196.43,196.34,0.71]
[1755879514463,3.82199629,196.44,196.36,26.0]
[1755879514634,3.82199629,196.46,196.37,0.99432314]
[1755879514935,3.82199629,196.47,196.45,13.14470753]
[1755879515130,4.52199629,196.46,196.41,26.0]
[1755879515361,3.82199629,196.44,196.43,13.14470753]
[1755879515534,4.52199629,196.44,196.43,13.14470753]
[1755879515745,4.52199629,196.44,196.34,0.71]
[1755879515746,3.82199629,196.4,196.34,0.71]
[1755879515971,3.82199629,196.4,196.39,13.14470753]
[1755879516137,3.82199629,196.42,196.39,13.14470753]
[1755879516329,3.82199629,196.42,196.31,0.31432314]
[1755879516330,3.82199629,196.43,196.41,13.14470753]
[1755879516534,3.82199629,196.4,196.31,0.74]
[1755879516730,3.82199629,196.37,196.31,0.74]
[1755879516950,3.82199629,196.37,196.35,13.14470753]
[1755879517167,3.82199629,196.38,196.35,13.14470753]
[1755879517372,3.82199629,196.37,196.36,13.14470753]
[1755879517663,4.52199629,196.37,196.31,0.03]
[1755879517958,3.82199629,196.34,196.31,13.17470753]
[1755879518262,3.82199629,196.32,196.31,0.03]
[1755879518442,0.7,196.33,196.31,0.03]
[1755879518443,3.82199629,196.33,196.31,13.17470753]
[1755879518650,3.82199629,196.33,196.32,13.14470753]
[1755879518850,3.82199629,196.32,196.31,13.17470753]
[1755879519149,3.82199629,196.34,196.31,13.17470753]
[1755879519362,3.82199629,196.34,196.33,13.14470753]
[1755879519566,3.82199629,196.34,196.31,0.03]
[1755879519753,3.82199629,196.32,196.31,0.03]
[1755879519956,3.82199629,196.34,196.31,13.17470753]
[1755879520163,3.82199629,196.32,196.31,0.03]
[1755879520352,3.82199629,196.32,196.31,13.17470753]
[1755879520750,4.52199629,196.32,196.31,0.03]
[1755879521172,3.82199629,196.32,196.31,13.17470753]
[1755879521951,3.82199629,196.32,196.31,0.03]
[1755879522561,3.82199629,196.32,196.31,13.17470753]
[1755879522965,3.82199629,196.33,196.31,13.17470753]
[1755879523165,52.08,196.35,196.32,13.85470753]
[1755879523365,3.82199629,196.35,196.34,13.14470753]
[1755879523569,3.82199629,196.34,196.31,0.03]
[1755879523879,3.82199629,196.39,196.36,26.0]
[1755879524067,0.7,196.45,196.38,13.14470753]
[1755879524068,3.82199629,196.4,196.38,13.14470753]
[1755879524369,3.82199629,196.39,196.35,26.0]
[1755879524578,3.82199629,196.36,196.31,0.03]
[1755879524780,3.82199629,196.33,196.31,0.03]
[1755879525347,3.82199629,196.33,196.31,13.17470753]
[1755879525550,3.82199629,196.32,196.31,0.03]
[1755879525752,3.82199629,196.32,196.31,13.17470753]
[1755879526081,3.82199629,196.33,196.31,13.17470753]
[1755879526279,3.82199629,196.32,196.31,0.03]
[1755879526492,3.82199629,196.33,196.31,0.03]
[1755879526781,18.1175903,196.32,196.31,0.03]
[1755879527181,18.1175903,196.32,196.27,0.03]
[1755879527182,17.4175903,196.28,196.27,0.03]
[1755879527477,3.82199629,196.22,196.2,13.14470753]
[1755879527654,3.82199629,196.23,196.2,13.14470753]
[1755879527859,3.82199629,196.22,196.2,13.14470753]
[1755879528070,3.82199629,196.22,196.16,0.71]
[1755879528265,3.82199629,196.22,196.2,13.14470753]
[1755879528448,3.82199629,196.21,196.19,13.14470753]
[1755879529079,3.82199629,196.23,196.16,0.71]
[1755879529379,3.82199629,196.24,196.22,13.14470753]
[1755879529684,3.82199629,196.22,196.16,26.71]
[1755879530060,3.82199629,196.22,196.21,13.14470753]
[1755879530269,3.82199629,196.22,196.16,26.71]
[1755879530485,3.82199629,196.21,196.2,13.14470753]
[1755879530781,4.52199629,196.21,196.17,13.14470753]
[1755879530978,13.14470753,196.22,196.1,0.71]
[1755879530979,3.82199629,196.17,196.1,0.71]
[1755879531368,3.82199629,196.15,196.1,26.71]
[1755879531575,3.82199629,196.15,196.14,13.14470753]
[1755879531778,3.82199629,196.15,196.13,13.14470753]
[1755879532295,3.82199629,196.1,196.09,0.03]
[1755879532658,3.82199629,196.11,196.09,0.03]
[1755879532856,13.14470753,196.12,196.09,0.03]
[1755879532857,3.82199629,196.12,196.09,13.17470753]
[1755879533063,55.82199629,196.13,196.09,0.03]
[1755879533281,55.82199629,196.13,196.09,13.17470753]
[1755879533590,3.82199629,196.1,196.09,13.17470753]
[1755879533783,3.82199629,196.12,196.1,0.71]
[1755879533980,3.82199629,196.12,196.09,0.03]
[1755879534181,52.0,196.13,196.09,0.03]
[1755879534493,3.82199629,196.15,196.12,13.14470753]
[1755879534667,3.82199629,196.15,196.14,13.14470753]
[1755879534879,55.80199629,196.17,196.14,13.85470753]
[1755879535071,55.80199629,196.17,196.14,0.71]
[1755879535378,16.96670382,196.15,196.1,26.0]
[1755879535588,51.98,196.17,196.09,0.03]
[1755879535589,3.82199629,196.1,196.09,0.03]
[1755879535883,55.80199629,196.1,196.09,0.03]
[1755879536072,3.82199629,196.1,196.09,0.03]
[1755879536264,55.80199629,196.1,196.09,0.03]
[1755879536691,51.98,196.1,196.09,0.03]
[1755879536880,55.80199629,196.1,196.09,0.03]
[1755879538177,56.50199629,196.1,196.09,0.03]
[1755879538383,69.64670382,196.1,196.09,0.03]
[1755879538572,55.80199629,196.1,196.09,0.03]
[1755879538994,69.64670382,196.1,196.09,0.03]
[1755879539702,51.98,196.1,196.09,0.03]
[1755879540199,51.94,196.1,196.09,0.03]
[1755879540397,51.94,196.1,196.07,0.03]
[1755879540398,17.70191344,196.08,196.07,0.03]
[1755879540606,30.84662097,196.08,196.07,0.03]
[1755879540898,30.84662097,196.08,195.91,0.71]
[1755879540899,3.82199629,196.0,195.91,0.71]
[1755879541101,55.76199629,195.99,195.96,13.14470753]
[1755879541317,51.92,195.99,195.97,13.14470753]
[1755879541504,55.74199629,195.99,195.92,0.71]
[1755879541815,55.74199629,195.99,195.95,13.14470753]
[1755879542018,55.74199629,195.99,195.92,0.71]
[1755879542191,51.92,195.99,195.92,0.71]
[1755879542385,55.74199629,195.99,195.92,0.71]
[1755879542590,3.82199629,195.98,195.95,13.14470753]
[1755879542809,51.92,195.99,195.95,13.14470753]
[1755879542985,51.92,195.99,195.97,13.14470753]
[1755879543616,51.92,195.99,195.98,13.14470753]
[1755879543795,51.92,195.99,195.96,13.14470753]
[1755879543796,55.74199629,195.99,195.96,13.14470753]
[1755879544116,55.74199629,195.99,195.96,13.85470753]
[1755879544413,55.74199629,195.99,195.83,15.26]
[1755879544414,13.14470753,195.97,195.82,6.17800371]
[1755879544616,3.82199629,195.94,195.88,0.71]
[1755879544787,55.74199629,195.93,195.88,0.71]
[1755879544986,55.74199629,195.93,195.82,4.02139064]
[1755879544987,3.82199629,195.91,195.87,13.14470753]
[1755879545297,16.96670382,195.92,195.87,13.14470753]
[1755879545610,3.82199629,195.91,195.83,13.59559401]
[1755879545813,55.72199629,195.91,195.86,26.0]
[1755879545981,3.82199629,195.89,195.77,6.17800371]
[1755879546191,3.82199629,195.89,195.86,13.14470753]
[1755879546517,51.9,195.91,195.88,13.14470753]
[1755879546717,3.82199629,195.9,195.84,26.0]
[1755879546925,3.82199629,195.9,195.77,4.00977568]
[1755879546926,3.82199629,195.82,195.7,67.14224179]
[1755879547121,3.82199629,195.9,195.75,6.17800371]
[1755879547307,51.88,195.89,195.83,26.0]
[1755879547486,3.82199629,195.9,195.84,0.71]
[1755879547686,3.82199629,195.95,195.88,26.0]
[1755879547886,51.88,195.94,195.92,13.14470753]
[1755879548114,51.88,195.94,195.88,26.0]
[1755879548285,55.70199629,195.94,195.92,13.14470753]
[1755879548492,3.82199629,195.92,195.86,0.71]
[1755879548689,3.82199629,195.92,195.91,26.0]
[1755879548904,3.82199629,195.92,195.91,22.0]
[1755879549217,3.82199629,195.94,195.91,13.85470753]
[1755879549393,3.82199629,195.94,195.91,13.14470753]
[1755879549587,0.7,195.99,195.86,13.14470753]
[1755879549588,3.82199629,195.96,195.93,13.14470753]
[1755879549790,3.82199629,195.94,195.91,13.14470753]
[1755879549989,3.82199629,195.93,195.85,0.71]
[1755879550232,3.82199629,195.91,195.89,13.14470753]
[1755879550389,3.82199629,195.9,195.89,13.14470753]
[1755879550720,13.84470753,195.95,195.89,13.14470753]
[1755879550721,3.82199629,195.95,195.89,13.85470753]
[1755879550899,51.86,195.96,195.94,13.14470753]
[1755879551096,51.86,195.96,195.95,13.14470753]
[1755879551403,3.82199629,196.0,195.95,13.14470753]
[1755879551620,51.84,196.0,195.99,13.14470753]
[1755879551920,3.82199629,195.98,195.97,26.0]
[1755879552094,3.82199629,195.98,195.86,13.14470753]
[1755879552095,3.82199629,195.96,195.93,13.14470753]
[1755879552467,3.82199629,195.97,195.95,13.14470753]
[1755879552643,4.52199629,195.96,195.94,13.14470753]
[1755879552832,3.82199629,195.94,195.91,13.14470753]
[1755879553014,3.82199629,195.94,195.93,26.0]
[1755879553213,51.82,195.99,195.93,39.85470753]
[1755879553398,3.82199629,195.98,195.97,13.14470753]
[1755879553726,3.82199629,196.04,196.0,26.0]
[1755879554034,51.84,196.03,196.0,26.0]
[1755879554195,218.56,196.05,196.02,13.14470753]
[1755879554396,218.56,196.05,196.04,13.14470753]
[1755879554741,218.56,196.05,195.97,0.14216157]
[1755879554742,3.82199629,196.03,195.97,0.71]
[1755879554908,3.82199629,196.03,196.02,13.14470753]
[1755879555111,3.82199629,196.02,196.01,13.14470753]
[1755879555319,3.82199629,196.01,196.0,39.14470753]
[1755879555533,3.82199629,196.0,195.94,0.71]
[1755879555853,3.82199629,195.97,195.91,0.71]
[1755879556137,51.8,195.99,195.91,0.71]
[1755879556443,3.82199629,195.97,195.91,0.71]
[1755879556612,3.82199629,195.98,195.95,26.03]
[1755879556936,3.82199629,195.97,195.95,26.03]
[1755879557139,3.82199629,195.97,195.96,13.14470753]
[1755879557314,3.82199629,195.98,195.96,13.14470753]
[1755879557644,3.82199629,196.03,196.0,26.0]
[1755879557811,218.56,196.05,196.04,26.0]
[1755879558011,218.56,196.05,196.04,13.14470753]
[1755879558614,218.56,196.05,196.04,13.86470753]
[1755879558828,218.56,196.05,196.04,13.14470753]
[1755879559037,218.56,196.05,196.01,26.0]
[1755879559243,222.38199629,196.05,196.04,13.14470753]
[1755879559407,222.38199629,196.05,195.95,0.03]
[1755879559408,236.19670382,196.05,195.95,0.03]
[1755879559612,3.82199629,195.98,195.96,13.14470753]
[1755879559830,3.82199629,195.98,195.97,13.14470753]
[1755879560252,3.82199629,195.98,195.95,0.03]
[1755879560418,3.82199629,196.0,195.97,13.14470753]
[1755879560757,218.56,196.05,195.99,13.14470753]
[1755879560758,3.82199629,196.01,195.99,13.14470753]
[1755879560910,218.56,196.05,196.0,13.86470753]
[1755879560911,270.28,196.05,196.0,13.86470753]
[1755879561243,270.28,196.05,196.04,13.14470753]
[1755879561244,274.10199629,196.05,196.04,13.14470753]
[1755879561411,3.82199629,196.03,195.99,26.0]
[1755879561615,4.49199629,196.02,195.95,0.17216157]
[1755879561818,3.82199629,195.99,195.95,0.03]
[1755879562325,3.82199629,195.97,195.95,0.03]
[1755879562950,3.82199629,195.96,195.95,0.03]
[1755879563160,3.82199629,195.96,195.95,13.17470753]
[1755879563318,4.49199629,195.96,195.95,0.03]
[1755879563516,3.82199629,195.96,195.95,13.17470753]
[1755879564214,3.82199629,195.96,195.95,0.03]
[1755879564417,4.49199629,195.96,195.95,0.03]
[1755879564614,4.49199629,195.96,195.95,13.17470753]
[1755879564839,3.82199629,195.96,195.95,13.17470753]
[1755879565012,3.82199629,195.96,195.95,0.03]
[1755879565341,55.50199629,195.97,195.95,13.17470753]
[1755879565542,55.50199629,195.97,195.96,13.14470753]
[1755879565915,51.68,195.97,195.96,13.14470753]
[1755879566117,3.82199629,196.01,195.96,13.86470753]
[1755879566313,55.48199629,196.0,195.95,0.03]
[1755879566517,55.48199629,196.0,195.96,0.72]
[1755879566518,51.66,196.0,195.96,0.72]
[1755879566729,3.82199629,196.03,195.97,0.72]
[1755879566934,218.56,196.05,196.01,26.0]
[1755879567128,3.82199629,196.03,196.01,26.0]
[1755879567329,218.56,196.05,196.02,13.14470753]
[1755879567553,218.56,196.05,196.04,13.14470753]
[1755879568433,218.56,196.05,196.04,27.74462468]
[1755879568751,98.43663602,196.05,196.04,31.80510353]
[1755879568979,98.43663602,196.05,196.04,0.72]
[1755879569136,98.43663602,196.05,196.04,27.74462468]
[1755879569535,3.82199629,196.16,196.05,0.28432314]
[1755879569758,51.62,196.16,196.15,13.14470753]
[1755879570040,51.62,196.16,196.1,26.0]
[1755879570041,3.82199629,196.14,196.1,26.0]
[1755879570238,13.14470753,196.19,196.06,0.28432314]
[1755879570239,3.82199629,196.11,196.07,26.0]
[1755879570469,3.82199629,196.14,196.1,13.14470753]
[1755879570638,3.82199629,196.14,196.01,26.0]
[1755879570639,0.06,196.05,196.01,26.0]
[1755879570838,4.49199629,196.16,196.08,26.0]
[1755879571165,51.6,196.15,196.08,26.0]
[1755879571338,51.6,196.15,196.08,26.72]
[1755879571339,3.82199629,196.11,196.08,26.72]
[1755879571539,0.06,196.09,196.08,26.28432314]
[1755879571740,0.06,196.09,196.08,26.0]
[1755879571939,0.06,196.09,196.04,27.00432314]
[1755879572155,0.06,196.09,196.05,0.72]
[1755879572335,0.06,196.09,196.08,13.14470753]
[1755879572536,3.82199629,196.13,196.11,26.0]
[1755879572765,51.56,196.19,196.08,27.02462468]
[1755879572766,3.82199629,196.17,196.1,26.0]
[1755879572960,3.82199629,196.17,196.16,13.14470753]
[1755879573156,3.82199629,196.18,196.16,13.14470753]
[1755879573467,4.02199629,196.25,196.17,39.86470753]
[1755879573648,4.02199629,196.25,196.17,26.72]
[1755879573649,3.82199629,196.21,196.17,26.72]
[1755879573853,0.2,196.25,196.2,13.14470753]
[1755879574166,0.2,196.25,196.24,13.14470753]
[1755879574568,0.2,196.25,196.24,13.86470753]
[1755879574750,0.2,196.25,196.24,27.74462468]
[1755879575368,3.82199629,196.32,196.27,26.0]
[1755879575566,3.88199629,196.34,196.31,13.14470753]
[1755879575864,3.88199629,196.34,196.33,13.14470753]
[1755879576073,3.88199629,196.34,196.28,13.14470753]
[1755879576246,3.88199629,196.34,196.27,1.00432314]
[1755879576247,3.82199629,196.32,196.27,1.00432314]
[1755879576559,4.49199629,196.32,196.26,26.0]
[1755879576871,3.82199629,196.32,196.26,26.0]
[1755879577048,3.82199629,196.32,196.23,17.88070831]
[1755879577049,3.82199629,196.3,196.29,13.14470753]
[1755879577365,3.82199629,196.29,196.25,26.0]
[1755879577542,3.82199629,196.33,196.29,0.72]
[1755879577749,3.88199629,196.34,196.29,0.72]
[1755879578251,3.88199629,196.34,196.29,26.0]
[1755879578454,3.88199629,196.34,196.33,13.14470753]
[1755879578852,0.06,196.34,196.33,13.14470753]
[1755879579465,0.06,196.34,196.31,0.28432314]
[1755879579667,0.06,196.34,196.33,27.02462468]
[1755879579854,0.06,196.36,196.35,26.0]
[1755879580044,0.06,196.36,196.35,39.42903067]
[1755879580457,0.06,196.36,196.31,39.59559401]
[1755879580651,0.06,196.36,196.35,13.14470753]
[1755879580652,3.88199629,196.36,196.35,13.14470753]
[1755879580853,3.82199629,196.35,196.34,26.0]
[1755879581170,0.06,196.36,196.34,39.86470753]
[1755879581471,0.06,196.36,196.35,13.14470753]
[1755879581662,3.82199629,196.45,196.38,26.0]
[1755879581852,3.82199629,196.47,196.44,13.14470753]
[1755879582055,3.82199629,196.47,196.46,13.14470753]
[1755879582476,3.82199629,196.46,196.4,1.5134881]
[1755879582675,3.82199629,196.46,196.45,13.14470753]
[1755879582846,3.82199629,196.47,196.45,13.14470753]
[1755879583053,3.88199629,196.49,196.46,13.14470753]
[1755879583251,3.82199629,196.46,196.45,26.0]
[1755879583770,0.06,196.49,196.42,0.72]
[1755879583771,3.88199629,196.49,196.42,0.72]
[1755879583970,0.06,196.49,196.42,0.72]
[1755879584151,3.82199629,196.46,196.41,26.28432314]
[1755879584472,3.82199629,196.46,196.45,13.14470753]
[1755879584771,3.88199629,196.49,196.45,13.14470753]
[1755879584975,3.82199629,196.46,196.45,13.14470753]
[1755879585271,0.73,196.49,196.45,13.14470753]
[1755879585272,3.88199629,196.49,196.45,13.14470753]
[1755879585465,0.06,196.49,196.48,13.14470753]
[1755879585769,3.88199629,196.49,196.48,26.0]
[1755879585975,3.88199629,196.49,196.48,39.14470753]
[1755879586177,3.88199629,196.49,196.48,26.0]
[1755879586366,4.55199629,196.49,196.48,13.14470753]
[1755879586762,3.82199629,196.46,196.43,78.5]
[1755879586963,3.82199629,196.45,196.38,55.46712821]
[1755879587272,3.82199629,196.45,196.44,13.14470753]
[1755879588571,3.82199629,196.45,196.35,51.3]
[1755879588572,3.82199629,196.4,196.35,51.3]
[1755879588779,3.82199629,196.4,196.39,39.14470753]
[1755879588975,3.82199629,196.4,196.39,13.14470753]
[1755879589166,3.82199629,196.41,196.39,13.14470753]
[1755879589365,3.82199629,196.41,196.35,0.14216157]
[1755879589366,3.82199629,196.43,196.4,13.14470753]
[1755879589677,3.82199629,196.43,196.36,0.82216157]
[1755879589867,4.49199629,196.43,196.36,0.14216157]
[1755879590077,3.82199629,196.43,196.35,51.26]
[1755879590281,3.82199629,196.43,196.3,5.0075393]
[1755879590282,3.82199629,196.39,196.32,0.68]
[1755879590460,3.82199629,196.38,196.37,13.14470753]
[1755879590659,3.82199629,196.38,196.35,13.14470753]